[Event "EYCC 2017"]
[Site "Mamaia"]
[Date "2017.09.11"]
[Round "6"]
[White "Gharibyan, Mamikon"]
[Black "Krstulovic, Alex"]
[Result "1/2-1/2"]
[ECO "D12"]
[WhiteElo "2365"]
[BlackElo "2261"]
[Annotator "NA"]
[PlyCount "52"]
[EventDate "2017.??.??"]
[EventType "swiss"]
[EventCountry "ROU"]
[SourceTitle "playchess.com"]
[Source "ChessBase"]
[SourceQuality "1"]
[TimeControl "40/5400+30:1800+30"]

1. d4 {[%emt 0:00:00]} d5 {[%emt 0:00:05]} 2. c4 {[%emt 0:00:00]} c6 {[%emt 0:00:06]} 3. Nf3 {[%emt 0:00:00]} Nf6 {[%emt 0:00:10]} 4. e3 {[%emt 0:00:03]} Bf5 {[%emt 0:00:14]} 5. Nc3 {[%emt 0:00:07]} a6 {[%emt 0:00:06]} 6. Bd3 {[%emt 0:08:22]} Bg6 {[%emt 0:00:25]} 7. O-O {[%emt 0:04:49]} e6 {[%emt 0:02:43]} 8. Re1 {[%emt 0:05:55]} Nbd7 {[%emt 0:09:32]} 9. e4 {[%emt 0:04:19]} dxe4 {[%emt 0:00:25]} 10. Nxe4 {[%emt 0:00:12]} Nxe4 {[%emt 0:00:31]} 11. Bxe4 {[%emt 0:00:06]} Bxe4 {[%emt 0:05:45]} 12. Rxe4 {[%emt 0:00:41]} Be7 {[%emt 0:00:14]} 13. b3 {[%emt 0:12:15]} O-O {[%emt 0:01:38]} 14. Bb2 {[%emt 0:01:45]} a5 {[%emt 0:04:32]} 15. Qc2 {[%emt 0:09:27]} Bf6 {[%emt 0:07:18]} 16. Rd1 {[%emt 0:01:57]} Qc7 {[%emt 0:11:32]} 17. g3 {[%emt 0:03:46]} Rfd8 {[%emt 0:02:29]} 18. h4 {[%emt 0:08:16]} c5 {[%emt 0:13:33]} 19. d5 {[%emt 0:11:26]} exd5 {[%emt 0:02:24]} 20. cxd5 {[%emt 0:02:33]} Bxb2 {[%emt 0:00:13]} 21. Qxb2 {[%emt 0:00:10]} Nf6 {[%emt 0:00:20]} 22. Re5 {[%emt 0:00:36]} Rd6 {[%emt 0:00:55]} 23. h5 {[%emt 0:01:29]} Rad8 {[%emt 0:06:45]} 24. h6 {[%emt 0:00:53]} gxh6 {[%emt 0:00:24]} 25. Qd2 {[%emt 0:02:56]} Rxd5 {[%emt 0:01:42]} 26. Qxh6 {[%emt 0:06:45]} Rxd1+ {[%emt 0:17:41]} 1/2-1/2

[Event "EYCC 2017"]
[Site "Mamaia"]
[Date "2017.09.11"]
[Round "6"]
[White "Salemgareev, Tagir"]
[Black "Parkhov, Yair"]
[Result "1-0"]
[ECO "E12"]
[WhiteElo "2354"]
[BlackElo "2391"]
[Annotator "NA"]
[PlyCount "66"]
[EventDate "2017.??.??"]
[EventType "swiss"]
[EventCountry "ROU"]
[SourceTitle "playchess.com"]
[Source "ChessBase"]
[SourceQuality "1"]
[TimeControl "40/5400+30:1800+30"]

1. d4 {[%emt 0:00:00]} Nf6 {[%emt 0:00:07]} 2. c4 {[%emt 0:00:00]} e6 {[%emt 0:00:06]} 3. Nf3 {[%emt 0:00:00]} b6 {[%emt 0:00:06]} 4. a3 {[%emt 0:00:01]} Bb7 {[%emt 0:00:06]} 5. Nc3 {[%emt 0:00:06]} d5 {[%emt 0:00:07]} 6. cxd5 {[%emt 0:00:07]} Nxd5 {[%emt 0:00:06]} 7. e3 {[%emt 0:00:38]} Be7 {[%emt 0:00:10]} 8. Bb5+ {[%emt 0:01:08]} c6 {[%emt 0:00:09]} 9. Bd3 {[%emt 0:00:04]} O-O {[%emt 0:00:46]} 10. O-O {[%emt 0:00:06]} c5 {[%emt 0:05:07]} 11. e4 {[%emt 0:01:41]} Nxc3 {[%emt 0:00:41]} 12. bxc3 {[%emt 0:00:06]} cxd4 {[%emt 0:09:46]} 13. cxd4 {[%emt 0:00:19]} Nc6 {[%emt 0:00:19]} 14. Bb2 {[%emt 0:15:12]} Rc8 {[%emt 0:03:46]} 15. Qe2 {[%emt 0:01:21]} Na5 {[%emt 0:06:58]} 16. Rad1 {[%emt 0:05:42]} Bf6 {[%emt 0:03:27]} 17. Rfe1 {[%emt 0:05:44]} Qc7 {[%emt 0:18:18]} 18. Nd2 {[%emt 0:10:06]} Qc6 {[%emt 0:09:44]} 19. Qg4 {[%emt 0:05:05]} Qa4 {[%emt 0:06:50]} 20. e5 {[%emt 0:05:19]} Be7 {[%emt 0:00:06]} 21. Re3 {[%emt 0:04:40]} g6 {[%emt 0:03:01]} 22. Rde1 {[%emt 0:03:56]} Rfd8 {[%emt 0:05:59]} 23. Rh3 {[%emt 0:05:43]} Bd5 {[%emt 0:04:51]} 24. Qf4 {[%emt 0:12:14]} Bf8 {[%emt 0:00:17]} 25. Rxh7 {[%emt 0:03:11]} Bg7 {[%emt 0:13:15]} 26. Qh4 {[%emt 0:03:54]} Nb3 {[%emt 0:01:53]} 27. Nxb3 {[%emt 0:06:26]} Qxb3 {[%emt 0:00:31]} 28. Bc1 {[%emt 0:00:08]} Rxc1 {[%emt 0:06:02]} 29. Rxc1 {[%emt 0:00:08]} Rf8 {[%emt 0:00:42]} 30. Bf1 {[%emt 0:03:15]} Be4 {[%emt 0:01:36]} 31. Rxg7+ {[%emt 0:00:27]} Kxg7 {[%emt 0:00:07]} 32. Qxe4 {[%emt 0:00:05]} Qxa3 {[%emt 0:00:10]} 33. Rc7 {[%emt 0:00:23]} Qa2 1-0

[Event "EYCC 2017"]
[Site "Mamaia"]
[Date "2017.09.11"]
[Round "6"]
[White "Van Dael, Siem"]
[Black "Katopodis, Dimitrios"]
[Result "0-1"]
[ECO "C41"]
[WhiteElo "2319"]
[BlackElo "2210"]
[Annotator "RC"]
[PlyCount "140"]
[EventDate "2017.??.??"]
[EventType "swiss"]
[EventCountry "ROU"]
[SourceTitle "playchess.com"]
[Source "ChessBase"]
[SourceQuality "1"]
[TimeControl "40/5400+30:1800+30"]

1. e4 {[%emt 0:00:00]} d6 {[%emt 0:00:08]} 2. d4 {[%emt 0:00:00]} Nf6 {[%emt 0:00:08]} 3. Nc3 {[%emt 0:00:00]} e5 {[%emt 0:00:24]} 4. Nf3 {[%emt 0:00:01]} Nbd7 {[%emt 0:00:22]} 5. Bc4 {[%emt 0:00:13]} Be7 {[%emt 0:00:15]} 6. a4 {[%emt 0:00:09]} a5 {[%emt 0:00:58]} 7. O-O {[%emt 0:00:30]} O-O {[%emt 0:00:36]} 8. Ba2 {[%emt 0:02:25]} c6 {[%emt 0:01:09]} 9. Qe2 {[%emt 0:00:41]} h6 {[%emt 0:03:20]} 10. Rd1 {[%emt 0:00:35]} Qc7 {[%emt 0:03:08]} 11. h3 {[%emt 0:01:59]} exd4 {[%emt 0:03:57]} 12. Nxd4 {[%emt 0:08:56]} Nc5 {[%emt 0:06:03]} 13. Bf4 {[%emt 0:07:39]} Re8 {[%emt 0:15:54]} 14. Qc4 {[%emt 0:02:10]} Be6 {[%emt 0:08:07]} 15. Nxe6 {[%emt 0:24:24]} Nxe6 {[%emt 0:00:36]} 16. Bh2 {[%emt 0:00:42]} Rad8 {[%emt 0:03:04]} 17. Rd2 {[%emt 0:02:44]} Nd7 {[%emt 0:04:18]} 18. f4 {[%emt 0:16:57]} Qb6+ {[%emt 0:04:00]} 19. Kh1 {[%emt 0:00:09]} Qb4 {[%emt 0:06:24]} 20. Rad1 {[%emt 0:08:57]} Qxc4 {[%emt 0:04:38]} 21. Bxc4 {[%emt 0:00:07]} Nb6 {[%emt 0:00:56]} 22. Bxe6 {[%emt 0:17:36]} fxe6 {[%emt 0:00:15]} 23. b3 {[%emt 0:00:03]} d5 {[%emt 0:07:16]} 24. Bg1 {[%emt 0:01:48]} Nd7 {[%emt 0:02:35]} 25. Rd3 {[%emt 0:03:13]} Bc5 {[%emt 0:04:52]} 26. Bh2 {[%emt 0:00:29]} Nf6 {[%emt 0:02:27]} 27. e5 {[%emt 0:00:29]} Nd7 {[%emt 0:01:16]} 28. f5 {[%emt 0:00:32]} Bb6 {[%emt 0:02:50]} 29. Rf3 {[%emt 0:00:29]} exf5 {[%emt 0:01:28]} 30. Rxf5 {[%emt 0:00:01]} g6 {[%emt 0:01:38]} 31. Rf3 {[%emt 0:00:47]} Nxe5 {[%emt 0:00:50]} 32. Rf6 {[%emt 0:00:38]} Kg7 {[%emt 0:02:51]} 33. Rdf1 {[%emt 0:00:22]} Rd7 {[%emt 0:00:35]} 34. Ne2 {[%emt 0:00:41]} Nf7 {[%emt 0:03:36]} 35. Nc1 {[%emt 0:00:32]} Ng5 {[%emt 0:01:08]} 36. Nd3 {[%emt 0:00:25]} Ne4 {[%emt 0:01:58]} 37. R6f3 {[%emt 0:00:36]} Nd2 {[%emt 0:02:15]} 38. Ne5 {[%emt 0:00:01]} Nxf3 {[%emt 0:01:01]} 39. Nxd7 {[%emt 0:00:07]} Nxh2 {[%emt 0:00:19]} 40. Kxh2 {[%emt 0:00:00]} Bc7+ {[%emt 0:02:11]} 41. Kh1 {[%emt 0:07:48]} b6 {[%emt 0:01:23]} 42. Kg1 {[%emt 0:01:56]} h5 {[%emt 0:10:30]} 43. g4 {[%emt 0:01:40]} hxg4 {[%emt 0:02:05]} 44. hxg4 {[%emt 0:00:05]} Re2 {[%emt 0:04:19]} 45. c4 {[%emt 0:02:48]} d4 {[%emt 0:02:34]} 46. c5 {[%emt 0:01:52]} b5 {[%emt 0:02:46]} 47. axb5 {[%emt 0:03:41]} cxb5 {[%emt 0:00:01]} 48. Rd1 {[%emt 0:01:54]} Re4 {[%emt 0:02:33]} 49. g5 {[%emt 0:00:07]} Rg4+ {[%emt 0:01:24]} 50. Kf1 {[%emt 0:01:45]} Kf7 {[%emt 0:00:38]} 51. Ke2 {[%emt 0:03:36]} Ke6 {[%emt 0:00:58]} 52. c6 {[%emt 0:01:20]} Kd6 {[%emt 0:01:55]} 53. Nf6 {[%emt 0:00:29]} Rg2+ {[%emt 0:01:10]} 54. Kf3 {[%emt 0:00:33]} Rc2 {[%emt 0:00:29]} 55. Rxd4+ {[%emt 0:01:22]} Kxc6 {[%emt 0:00:11]} 56. Nd5 {[%emt 0:01:56]} Bd6 {[%emt 0:01:41]} 57. Ke4 {[%emt 0:02:18]} Rg2 {[%emt 0:00:33]} 58. Nc3 {[%emt 0:02:29]} Rxg5 {[%emt 0:00:32]} 59. Rd1 {[%emt 0:00:49]} Rg4+ {[%emt 0:01:17]} 60. Kd3 {[%emt 0:00:02]} Rg3+ {[%emt 0:00:24]} 61. Kc2 {[%emt 0:01:02]} Be5 {[%emt 0:01:08]} 62. Ne2 {[%emt 0:00:47]} Re3 {[%emt 0:00:16]} 63. Nc1 {[%emt 0:01:18]} g5 {[%emt 0:01:04]} 64. Rh1 {[%emt 0:00:41]} g4 {[%emt 0:00:36]} 65. Nd3 {[%emt 0:00:58]} Kd5 {[%emt 0:00:43]} 66. Rh5 {[%emt 0:00:46]} Kd4 {[%emt 0:00:21]} 67. Nc1 {[%emt 0:00:31]} Ke4 {[%emt 0:01:14]} 68. Rg5 {[%emt 0:00:45]} Rc3+ {[%emt 0:00:28]} 69. Kd2 {[%emt 0:00:25]} Rxc1 {[%emt 0:00:59]} 70. Rxg4+ {[%emt 0:00:01]} Kf5 {[%emt 0:00:37]} 0-1

[Event "EYCC 2017"]
[Site "Mamaia"]
[Date "2017.09.11"]
[Round "6"]
[White "Avalyan, Artur"]
[Black "Tomasi, Albert"]
[Result "1/2-1/2"]
[ECO "A58"]
[WhiteElo "2277"]
[BlackElo "2343"]
[Annotator "NA"]
[PlyCount "70"]
[EventDate "2017.??.??"]
[EventType "swiss"]
[EventCountry "ROU"]
[SourceTitle "playchess.com"]
[Source "ChessBase"]
[SourceQuality "1"]
[TimeControl "40/5400+30:1800+30"]

1. d4 {[%emt 0:00:00]} Nf6 {[%emt 0:00:23]} 2. c4 {[%emt 0:00:00]} c5 {[%emt 0:00:18]} 3. d5 {[%emt 0:00:00]} b5 {[%emt 0:00:12]} 4. cxb5 {[%emt 0:00:00]} a6 {[%emt 0:00:09]} 5. bxa6 {[%emt 0:00:00]} e6 {[%emt 0:00:06]} 6. Nc3 {[%emt 0:04:04]} exd5 {[%emt 0:00:07]} 7. Nxd5 {[%emt 0:00:25]} Bxa6 {[%emt 0:00:07]} 8. e4 {[%emt 0:10:26]} Bxf1 {[%emt 0:00:22]} 9. Kxf1 {[%emt 0:00:05]} Be7 {[%emt 0:00:17]} 10. Nc3 {[%emt 0:19:19]} Nc6 {[%emt 0:05:15]} 11. Nf3 {[%emt 0:01:37]} O-O {[%emt 0:02:20]} 12. g3 {[%emt 0:04:14]} c4 {[%emt 0:06:09]} 13. Kg2 {[%emt 0:05:38]} Re8 {[%emt 0:08:07]} 14. Re1 {[%emt 0:09:13]} Bb4 {[%emt 0:19:25]} 15. Bg5 {[%emt 0:07:35]} Bxc3 {[%emt 0:02:58]} 16. bxc3 {[%emt 0:00:38]} h6 {[%emt 0:00:05]} 17. Bxf6 Qxf6 {[%emt 0:00:06]} 18. Qc2 {[%emt 0:04:05]} Ra3 {[%emt 0:01:13]} 19. Rac1 {[%emt 0:06:26]} d6 {[%emt 0:11:48]} 20. Re3 {[%emt 0:03:48]} Rea8 {[%emt 0:01:24]} 21. Qe2 {[%emt 0:00:51]} Rxa2 {[%emt 0:02:14]} 22. Qxc4 {[%emt 0:00:39]} Ne5 {[%emt 0:00:26]} 23. Qf1 {[%emt 0:00:44]} Ng4 {[%emt 0:21:17]} 24. Re2 {[%emt 0:00:11]} Qxf3+ {[%emt 0:00:10]} 25. Kxf3 {[%emt 0:00:06]} Nxh2+ {[%emt 0:00:04]} 26. Ke3 {[%emt 0:01:13]} Nxf1+ {[%emt 0:00:09]} 27. Rxf1 {[%emt 0:00:03]} Rxe2+ {[%emt 0:00:16]} 28. Kxe2 {[%emt 0:00:02]} Kf8 {[%emt 0:00:26]} 29. Kd3 {[%emt 0:05:56]} Ra2 {[%emt 0:01:26]} 30. Kd4 {[%emt 0:00:22]} Ke7 {[%emt 0:00:29]} 31. f4 {[%emt 0:02:00]} Rd2+ {[%emt 0:03:12]} 32. Ke3 {[%emt 0:01:43]} Rg2 {[%emt 0:00:16]} 33. Rf3 {[%emt 0:00:14]} Ke6 {[%emt 0:00:27]} 34. Kd4 {[%emt 0:02:08]} f5 {[%emt 0:05:17]} 35. Rd3 {[%emt 0:01:28]} fxe4 {[%emt 0:02:00] Ke5+ Kxe5} 1/2-1/2

[Event "EYCC 2017"]
[Site "Mamaia"]
[Date "2017.09.11"]
[Round "6"]
[White "Yeritsyan, Aram"]
[Black "De Boer, Eelke"]
[Result "1/2-1/2"]
[ECO "B54"]
[WhiteElo "2264"]
[BlackElo "2233"]
[Annotator "NA"]
[PlyCount "101"]
[EventDate "2017.??.??"]
[EventType "swiss"]
[EventCountry "ROU"]
[SourceTitle "playchess.com"]
[Source "ChessBase"]
[SourceQuality "1"]
[TimeControl "40/5400+30:1800+30"]

1. e4 {[%emt 0:00:00]} c5 {[%emt 0:00:08]} 2. Nf3 {[%emt 0:00:00]} d6 {[%emt 0:00:07]} 3. d4 {[%emt 0:00:00]} cxd4 {[%emt 0:00:06]} 4. Nxd4 {[%emt 0:00:00]} Nf6 {[%emt 0:00:12]} 5. f3 {[%emt 0:00:00]} e5 {[%emt 0:00:08]} 6. Nb3 {[%emt 0:00:00]} d5 {[%emt 0:00:04]} 7. Bg5 {[%emt 0:00:07]} d4 {[%emt 0:00:07]} 8. c3 {[%emt 0:00:56]} Nc6 {[%emt 0:01:13]} 9. cxd4 {[%emt 0:00:08]} Bb4+ {[%emt 0:00:12]} 10. Bd2 {[%emt 0:00:46]} Nxe4 {[%emt 0:01:44]} 11. Bxb4 {[%emt 0:03:52]} Qh4+ {[%emt 0:00:47]} 12. g3 {[%emt 0:00:48]} Nxg3 {[%emt 0:00:07]} 13. hxg3 {[%emt 0:00:11]} Qxg3+ {[%emt 0:00:07]} 14. Kd2 {[%emt 0:10:45]} Nxb4 {[%emt 0:10:17]} 15. Bb5+ {[%emt 0:09:50]} Ke7 {[%emt 0:06:57]} 16. Qe2 {[%emt 0:12:36]} Bf5 {[%emt 0:11:23]} 17. Nc3 {[%emt 0:18:48]} a6 {[%emt 0:10:32]} 18. Bc4 {[%emt 0:03:04]} Rhd8 {[%emt 0:04:30]} 19. Rag1 {[%emt 0:04:40]} Qf4+ {[%emt 0:03:58]} 20. Qe3 {[%emt 0:04:34]} Qxe3+ {[%emt 0:07:55]} 21. Kxe3 {[%emt 0:00:12]} Nc2+ {[%emt 0:00:39]} 22. Ke2 {[%emt 0:11:14]} Nxd4+ {[%emt 0:11:13]} 23. Nxd4 {[%emt 0:00:07]} Rxd4 {[%emt 0:00:13]} 24. Bd5 {[%emt 0:03:00]} Rd8 {[%emt 0:03:24]} 25. Rd1 {[%emt 0:01:02]} Rxd1 {[%emt 0:06:00]} 26. Rxd1 {[%emt 0:00:12]} Rd7 {[%emt 0:01:42]} 27. b4 {[%emt 0:01:36]} h5 {[%emt 0:03:29]} 28. Rh1 {[%emt 0:00:31]} g6 {[%emt 0:00:53]} 29. a4 {[%emt 0:00:45]} Be6 {[%emt 0:01:27]} 30. Bxe6 {[%emt 0:01:25]} Kxe6 {[%emt 0:00:06]} 31. Ne4 {[%emt 0:00:02]} b6 {[%emt 0:02:41]} 32. Rc1 {[%emt 0:03:12]} f5 {[%emt 0:01:11]} 33. Rc6+ {[%emt 0:00:05]} Kd5 {[%emt 0:00:42]} 34. Rxg6 {[%emt 0:02:35]} fxe4 {[%emt 0:00:07]} 35. fxe4+ {[%emt 0:01:04]} Kxe4 {[%emt 0:00:12]} 36. Rxb6 {[%emt 0:00:02]} a5 {[%emt 0:03:19]} 37. bxa5 {[%emt 0:00:22]} Rd4 {[%emt 0:00:09]} 38. Rh6 {[%emt 0:00:40]} Rxa4 {[%emt 0:01:23]} 39. Rxh5 {[%emt 0:00:02]} Ra2+ {[%emt 0:00:54]} 40. Ke1 {[%emt 0:00:00]} Rxa5 {[%emt 0:00:36]} 41. Rh3 {[%emt 0:00:19]} Rd5 {[%emt 0:01:46]} 42. Ke2 {[%emt 0:00:05]} Rd6 {[%emt 0:02:12]} 43. Rh4+ {[%emt 0:00:18]} Kf5 {[%emt 0:00:09]} 44. Ke3 {[%emt 0:00:03]} Rd8 {[%emt 0:00:44]} 45. Rh5+ {[%emt 0:00:45]} Ke6 {[%emt 0:00:09]} 46. Rh1 {[%emt 0:00:50]} Ra8 {[%emt 0:00:10]} 47. Rb1 {[%emt 0:00:14]} Ra3+ {[%emt 0:00:06]} 48. Ke4 {[%emt 0:00:02]} Ra4+ {[%emt 0:00:29]} 49. Ke3 {[%emt 0:00:03]} Rh4 {[%emt 0:00:34]} 50. Rb8 {[%emt 0:00:08]} Rh3+ {[%emt 0:00:26]} 51. Ke4 1/2-1/2

[Event "EYCC 2017"]
[Site "Mamaia"]
[Date "2017.09.11"]
[Round "6"]
[White "Can, Isik"]
[Black "Kharitonov, Egor"]
[Result "1/2-1/2"]
[ECO "B41"]
[WhiteElo "2239"]
[BlackElo "2387"]
[Annotator "NA"]
[PlyCount "81"]
[EventDate "2017.??.??"]
[EventType "swiss"]
[EventCountry "ROU"]
[SourceTitle "playchess.com"]
[Source "ChessBase"]
[SourceQuality "1"]
[TimeControl "40/5400+30:1800+30"]

1. e4 {[%emt 0:00:00]} c5 {[%emt 0:00:06]} 2. Nf3 {[%emt 0:00:00]} e6 {[%emt 0:00:04]} 3. d4 {[%emt 0:00:00]} cxd4 {[%emt 0:00:05]} 4. Nxd4 {[%emt 0:00:00]} a6 {[%emt 0:00:07]} 5. c4 {[%emt 0:00:04]} Nf6 {[%emt 0:00:10]} 6. Nc3 {[%emt 0:00:11]} Bb4 {[%emt 0:00:12]} 7. Qd3 {[%emt 0:00:10]} Nc6 {[%emt 0:00:16]} 8. Nxc6 {[%emt 0:00:37]} dxc6 {[%emt 0:00:06]} 9. Qxd8+ {[%emt 0:00:04]} Kxd8 {[%emt 0:00:05]} 10. e5 {[%emt 0:00:03]} Ne4 {[%emt 0:00:13]} 11. a3 {[%emt 0:05:52]} Bxc3+ {[%emt 0:10:41]} 12. bxc3 {[%emt 0:00:04]} Nxc3 {[%emt 0:01:18]} 13. Bd2 {[%emt 0:12:13]} Na4 {[%emt 0:06:20]} 14. Bd3 {[%emt 0:11:29]} Kc7 {[%emt 0:07:22]} 15. Rb1 {[%emt 0:19:00]} b6 {[%emt 0:03:18]} 16. Bc2 {[%emt 0:10:20]} Nc5 {[%emt 0:00:14]} 17. Bb4 {[%emt 0:02:53]} Nb7 {[%emt 0:27:14]} 18. a4 {[%emt 0:11:27]} a5 {[%emt 0:03:39]} 19. Ba3 {[%emt 0:00:23]} c5 {[%emt 0:00:15]} 20. O-O {[%emt 0:05:32]} Nd8 {[%emt 0:02:37]} 21. Rfd1 {[%emt 0:01:41]} Nc6 {[%emt 0:01:38]} 22. Rd6 {[%emt 0:00:43]} Bb7 {[%emt 0:00:47]} 23. Be4 {[%emt 0:02:40]} Rad8 {[%emt 0:00:37]} 24. f4 {[%emt 0:04:36]} Nb4 {[%emt 0:02:04]} 25. Bxb7 {[%emt 0:00:19]} Kxb7 {[%emt 0:00:05]} 26. Rbd1 {[%emt 0:00:29]} Kc7 {[%emt 0:01:02]} 27. Kf2 {[%emt 0:01:26]} Rxd6 {[%emt 0:01:05]} 28. Rxd6 {[%emt 0:00:13]} Rd8 {[%emt 0:00:40]} 29. Rxd8 {[%emt 0:00:12]} Kxd8 {[%emt 0:00:04]} 30. Kf3 {[%emt 0:01:08]} Ke7 {[%emt 0:00:11]} 31. Ke4 {[%emt 0:00:00]} f6 {[%emt 0:00:34]} 32. Bb2 {[%emt 0:00:15]} Nc6 {[%emt 0:00:14]} 33. Bc3 {[%emt 0:02:09]} Kf7 {[%emt 0:03:30]} 34. g4 {[%emt 0:02:19]} Nb8 {[%emt 0:05:21]} 35. Bb2 {[%emt 0:02:08]} Nd7 {[%emt 0:00:12]} 36. Bc3 {[%emt 0:01:45]} fxe5 {[%emt 0:08:09]} 37. Bxe5 {[%emt 0:01:26]} Nxe5 {[%emt 0:02:45]} 38. fxe5 {[%emt 0:02:50]} Kg6 {[%emt 0:00:58]} 39. h4 {[%emt 0:01:06]} Kh6 {[%emt 0:00:58]} 40. Ke3 {[%emt 0:00:00]} g6 {[%emt 0:01:44]} 41. Ke4 {[%emt 0:00:42]} 1/2-1/2

[Event "EYCC 2017"]
[Site "Mamaia"]
[Date "2017.09.11"]
[Round "6"]
[White "Schneider, Jana"]
[Black "Muetsch, Annmarie"]
[Result "1-0"]
[ECO "B33"]
[WhiteElo "2231"]
[BlackElo "2137"]
[Annotator "NA"]
[PlyCount "66"]
[EventDate "2017.??.??"]
[EventType "swiss"]
[EventCountry "ROU"]
[SourceTitle "playchess.com"]
[Source "ChessBase"]
[SourceQuality "1"]
[TimeControl "40/5400+30:1800+30"]

1. e4 {[%emt 0:00:00]} c5 {[%emt 0:00:05]} 2. Nf3 {[%emt 0:00:00]} e6 {[%emt 0:00:06]} 3. d4 {[%emt 0:00:07]} cxd4 {[%emt 0:00:06]} 4. Nxd4 {[%emt 0:00:05]} Nf6 {[%emt 0:01:01]} 5. Nc3 {[%emt 0:02:06]} Nc6 {[%emt 0:00:26]} 6. Ndb5 {[%emt 0:01:09]} d6 {[%emt 0:00:15]} 7. Bf4 {[%emt 0:00:12]} e5 {[%emt 0:00:08]} 8. Bg5 {[%emt 0:00:06]} a6 {[%emt 0:00:15]} 9. Na3 {[%emt 0:00:06]} b5 {[%emt 0:00:06]} 10. Nd5 {[%emt 0:00:18]} Be7 {[%emt 0:00:09]} 11. Bxf6 {[%emt 0:00:08]} Bxf6 {[%emt 0:00:06]} 12. c3 {[%emt 0:00:13]} O-O {[%emt 0:00:17]} 13. Nc2 {[%emt 0:00:32]} Rb8 {[%emt 0:00:13]} 14. h4 {[%emt 0:00:20]} Be7 {[%emt 0:00:35]} 15. g3 {[%emt 0:00:33]} Be6 {[%emt 0:03:49]} 16. a3 {[%emt 0:03:15]} a5 {[%emt 0:06:39]} 17. Nce3 {[%emt 0:08:51]} Qd7 {[%emt 0:06:31]} 18. a4 {[%emt 0:01:24]} b4 {[%emt 0:31:31]} 19. Bb5 {[%emt 0:00:45]} Bd8 {[%emt 0:00:25]} 20. cxb4 {[%emt 0:09:13]} axb4 {[%emt 0:14:21]} 21. Rc1 {[%emt 0:03:31]} Rxb5 {[%emt 0:03:20]} 22. axb5 {[%emt 0:00:09]} Nd4 {[%emt 0:00:12]} 23. Qd3 {[%emt 0:12:20]} Bh3 {[%emt 0:06:26]} 24. b6 {[%emt 0:12:49]} Nf3+ {[%emt 0:05:42]} 25. Kd1 {[%emt 0:00:44]} Be6 {[%emt 0:08:05]} 26. Qa6 {[%emt 0:11:31]} Bxd5 {[%emt 0:01:41]} 27. exd5 {[%emt 0:00:48]} Nd4 {[%emt 0:01:42]} 28. Rc8 {[%emt 0:03:34]} f5 {[%emt 0:07:49]} 29. b7 {[%emt 0:02:07]} f4 {[%emt 0:01:45]} 30. b8=Q {[%emt 0:03:54]} fxe3 {[%emt 0:00:06]} 31. Qbxd6 {[%emt 0:01:52]} Qg4+ {[%emt 0:00:50]} 32. Kc1 {[%emt 0:01:17]} Qe4 {[%emt 0:01:13]} 33. fxe3 {[%emt 0:05:55]} Nb3+ 1-0

[Event "EYCC 2017"]
[Site "Mamaia"]
[Date "2017.09.11"]
[Round "6"]
[White "Shafigullina, Zarina"]
[Black "Heydarova, Aytaj"]
[Result "1/2-1/2"]
[ECO "E68"]
[WhiteElo "2130"]
[BlackElo "1850"]
[Annotator "NA"]
[PlyCount "60"]
[EventDate "2017.??.??"]
[EventType "swiss"]
[EventCountry "ROU"]
[SourceTitle "playchess.com"]
[Source "ChessBase"]
[SourceQuality "1"]
[TimeControl "40/5400+30:1800+30"]

1. d4 {[%emt 0:00:00]} Nf6 {[%emt 0:00:04]} 2. Nf3 {[%emt 0:00:00]} g6 {[%emt 0:00:03]} 3. g3 {[%emt 0:00:00]} Bg7 {[%emt 0:00:01]} 4. Bg2 {[%emt 0:00:00]} d6 {[%emt 0:00:02]} 5. O-O {[%emt 0:00:03]} Nbd7 {[%emt 0:00:05]} 6. c4 {[%emt 0:00:13]} O-O {[%emt 0:00:17]} 7. Nc3 {[%emt 0:00:03]} e5 {[%emt 0:00:05]} 8. e4 {[%emt 0:00:04]} Re8 {[%emt 0:00:13]} 9. Re1 {[%emt 0:00:12]} c6 {[%emt 0:02:00]} 10. h3 {[%emt 0:00:12]} Qc7 {[%emt 0:00:06]} 11. d5 {[%emt 0:01:40]} a5 {[%emt 0:02:08]} 12. Be3 {[%emt 0:01:46]} Nc5 {[%emt 0:13:07]} 13. Bxc5 {[%emt 0:06:34]} dxc5 {[%emt 0:00:08]} 14. a4 {[%emt 0:00:33]} Qb6 {[%emt 0:03:36]} 15. Ra3 {[%emt 0:03:56]} Qa6 {[%emt 0:14:07]} 16. Bf1 {[%emt 0:05:03]} Bd7 {[%emt 0:06:11]} 17. Qd2 {[%emt 0:09:54]} b6 {[%emt 0:04:36]} 18. dxc6 {[%emt 0:13:45]} Bxc6 {[%emt 0:03:41]} 19. Nd5 {[%emt 0:00:04]} Rac8 {[%emt 0:10:50]} 20. Qg5 {[%emt 0:03:36]} Re6 {[%emt 0:10:59]} 21. h4 {[%emt 0:02:25]} h6 {[%emt 0:05:14]} 22. Qd2 {[%emt 0:00:13]} Ng4 {[%emt 0:04:56]} 23. Nc7 {[%emt 0:03:14]} Rxc7 {[%emt 0:00:23]} 24. Qd8+ {[%emt 0:00:06]} Bf8 {[%emt 0:01:00]} 25. Qxc7 {[%emt 0:00:45]} Qa8 {[%emt 0:04:39]} 26. Rd1 {[%emt 0:05:21]} Re8 {[%emt 0:03:33]} 27. Bh3 {[%emt 0:40:11]} Rc8 {[%emt 0:01:52]} 28. Qxb6 {[%emt 0:03:26]} Rb8 {[%emt 0:00:03]} 29. Qc7 {[%emt 0:00:04]} Rc8 {[%emt 0:00:28]} 30. Qb6 {[%emt 0:00:03]} Rb8 {[%emt 0:00:11]} 1/2-1/2